fUSD/lending_fUSD_20260420
["ID","MTS","AMOUNT","RATE_DAILY","PERIOD"]
[420852455,1776639032740,-150.99,9.423e-05,2]
[420852456,1776639032749,-999.99,9.423e-05,2]
[420852457,1776639032758,-500.0,9.423e-05,2]
[420852458,1776639032768,-500.0,9.423e-05,2]
[420852459,1776639032778,-2351.292,9.441e-05,2]
[420852460,1776639032788,-166.855,9.441e-05,2]
[420852461,1776639032798,-155.0,9.441e-05,2]
[420852462,1776639032808,-500.0,9.443e-05,2]
[420852463,1776639032817,-250.0,9.443e-05,2]
[420852464,1776639032827,-252.51,9.443e-05,2]
[420852465,1776639032836,-150.0,9.534e-05,2]
[420852466,1776639032846,-150.0,9.534e-05,2]
[420852467,1776639032856,-150.0,9.534e-05,2]
[420852468,1776639032865,-150.0,9.534e-05,2]
[420852469,1776639032875,-183.56823945,9.534e-05,2]
[420852470,1776639032884,-2045.0698523,9.538e-05,2]
[420852471,1776639032895,-119219.2951,9.541e-05,2]
[420852472,1776639032904,-260.592825,9.59e-05,2]
[420852473,1776639032914,-33071.2974,9.643e-05,2]
[420852474,1776639032924,-1000.0,9.643e-05,2]
[420852475,1776639032933,-151.0,9.643e-05,2]
[420852476,1776639032943,-151.0,9.643e-05,2]
[420852477,1776639032952,-151.0,9.643e-05,2]
[420852478,1776639032962,-151.0,9.643e-05,2]
[420852479,1776639032971,-252.51,9.717e-05,2]
[420852480,1776639032981,-37744.89,9.812e-05,2]
[420852481,1776639032990,-250.0,9.859e-05,2]
[420852482,1776639033000,-578.20924308,9.913e-05,2]
[420852483,1776639033009,-8882.6885148,9.913e-05,2]
[420852484,1776639033019,-500.0,9.913e-05,2]
[420852485,1776639033028,-670.58624095,9.913e-05,2]
[420852486,1776639033038,-1281.15636884,9.913e-05,2]
[420852487,1776639033047,-174.61919141,9.913e-05,2]
[420852488,1776639033057,-7824.84,9.96e-05,2]
[420852489,1776639033066,-252.51,9.991e-05,2]
[420852490,1776639033075,-184.98249042,0.0001,2]
[420852491,1776639033085,-500.0,0.0001,2]
[420852492,1776639033096,-151.0,0.0001,2]
[420852493,1776639033106,-500.0,0.0001,2]
[420852494,1776639033118,-151.0,0.0001,2]
[420852495,1776639033127,-395.24826756,0.0001,2]
[420852496,1776639033137,-151.0,0.0001,2]
[420852497,1776639033147,-151.0,0.0001,2]
[420852498,1776639033158,-200.0,0.0001,2]
[420852499,1776639033170,-151.0,0.0001,2]
[420852500,1776639033179,-151.0,0.0001,2]
[420852501,1776639033188,-151.0,0.0001,2]
[420852502,1776639033198,-151.0,0.0001,2]
[420852503,1776639033207,-151.0,0.0001,2]
[420852504,1776639033218,-151.0,0.0001,2]
[420852505,1776639033228,-151.0,0.0001,2]
[420852506,1776639033239,-151.0,0.0001,2]
[420852507,1776639033248,-151.0,0.0001,2]
[420852508,1776639033257,-397.53432266,0.0001,2]
[420852509,1776639033267,-1976.39652943,0.0001,2]
[420852510,1776639033277,-4424.25155096,0.0001,2]
[420852511,1776639033287,-246.0,0.00010035,2]
[420852512,1776639033297,-152.0,0.00010066,7]
[420852513,1776639033308,-152.0,0.00010066,7]
[420852514,1776639033318,-152.0,0.00010066,7]
[420852515,1776639033328,-152.0,0.00010097,7]
[420852516,1776639033338,-152.0,0.00010097,7]
[420852517,1776639033349,-152.0,0.00010097,7]
[420852518,1776639033359,-152.0,0.00010097,7]
[420852519,1776639033371,-152.0,0.00010097,7]
[420852520,1776639033381,-152.0,0.00010107,7]
[420852521,1776639033391,-152.0,0.00010107,7]
[420852522,1776639033401,-152.0,0.00010107,7]
[420852523,1776639033411,-152.0,0.00010107,7]
[420852524,1776639033421,-152.0,0.00010107,7]
[420852525,1776639033432,-152.0,0.00010107,7]
[420852526,1776639033442,-502.0,0.00010247,2]
[420852527,1776639033451,-587.0,0.00010284,2]
[420852528,1776639033460,-2351.0,0.00010284,2]
[420852529,1776639033469,-181.08010149,0.00010461,2]
[420852530,1776639033479,-1709.0,0.000106,5]
[420852531,1776639033488,-333.0315845,0.00010677,2]
[420852532,1776639033498,-161.0,0.0001069,2]
[420852533,1776639033508,-161.0,0.0001069,2]
[420852534,1776639033517,-161.0,0.0001069,2]
[420852535,1776639033526,-11522.9094522,0.00010693,2]
[420852536,1776639033535,-8687.5689383,0.00010693,2]
[420852537,1776639033545,-13714.48189228,0.00010693,2]
[420852538,1776639033559,-43422.62314412,0.00010693,2]
[420852539,1776639033568,-151.0,0.00010693,2]
[420852540,1776639033578,-151.0,0.00010693,2]
[420852541,1776639033587,-151.0,0.00010693,2]
[420852542,1776639033597,-151.0,0.00010693,2]
[420852543,1776639033606,-29012.35324089,0.000107,2]
[420852544,1776639033618,-47160.4363896,0.000107,2]
[420852545,1776639033637,-406.64281751,9.243e-05,2]
[420852546,1776639033646,-2363.01867513,0.000107,2]
[420852547,1776639033661,-1673.2921892,0.000107,2]
[420852548,1776639033673,-1144.83459907,0.000107,2]
[420852549,1776639033683,-607.31830093,0.000107,2]
[420852550,1776639033695,-1703.4,0.000107,2]
[420852551,1776639037612,-150.0,8.22e-05,2]
[420852552,1776639037622,-165.88745658,9.243e-05,2]
[420852553,1776639037632,-500.0,9.243e-05,2]
[420852554,1776639037642,-500.0,9.243e-05,2]
[420852555,1776639037652,-500.0,9.243e-05,2]
[420852556,1776639037663,-500.0,9.243e-05,2]
[420852557,1776639037672,-581.81488909,9.243e-05,2]
[420852558,1776639037682,-500.0,9.243e-05,2]
[420852559,1776639037692,-500.0,9.243e-05,2]
[420852560,1776639037702,-82.50857415,9.243e-05,2]
[420852561,1776639037715,-417.49142585,9.243e-05,2]
[420852562,1776639037724,-500.0,9.243e-05,2]
[420852563,1776639037734,-500.0,9.243e-05,2]
[420852564,1776639037744,-466.64598529,9.243e-05,2]
[420852565,1776639037767,-33.35401471,9.243e-05,2]
[420852566,1776639037777,-500.0,9.243e-05,2]
[420852567,1776639037786,-500.0,9.243e-05,2]
[420852568,1776639037797,-500.0,9.243e-05,2]
[420852569,1776639037807,-500.0,9.243e-05,2]
[420852570,1776639037816,-500.0,9.243e-05,2]
[420852571,1776639037825,-500.0,9.243e-05,2]
[420852572,1776639037834,-500.0,9.243e-05,2]
[420852573,1776639037844,-500.0,9.243e-05,2]
[420852574,1776639037853,-500.0,9.243e-05,2]
[420852575,1776639037863,-500.0,9.243e-05,2]
[420852576,1776639037874,-500.0,9.243e-05,2]
[420852577,1776639037884,-500.0,9.243e-05,2]
[420852578,1776639037894,-500.0,9.243e-05,2]
[420852579,1776639037904,-500.0,9.243e-05,2]
[420852580,1776639037914,-500.0,9.243e-05,2]
[420852581,1776639037924,-500.0,9.243e-05,2]
[420852582,1776639037933,-500.0,9.243e-05,2]
[420852583,1776639037943,-500.0,9.243e-05,2]
[420852584,1776639037954,-500.0,9.243e-05,2]
[420852585,1776639037965,-500.0,9.243e-05,2]
[420852586,1776639037975,-500.0,9.243e-05,2]
[420852587,1776639037984,-500.0,9.243e-05,2]
[420852588,1776639037994,-500.0,9.243e-05,2]
[420852589,1776639038004,-151.27437422,9.243e-05,2]
[420852828,1776639040394,-348.72562578,9.243e-05,2]
[420852830,1776639040404,-500.0,9.243e-05,2]
[420852832,1776639040413,-371.43834088,9.243e-05,2]
[420852877,1776639040849,-128.56165912,9.243e-05,2]
[420852879,1776639040858,-500.0,9.243e-05,2]
[420852881,1776639040868,-500.0,9.243e-05,2]
[420852883,1776639040877,-500.0,9.243e-05,2]
[420852885,1776639040886,-500.0,9.243e-05,2]
[420852887,1776639040896,-500.0,9.243e-05,2]
[420852889,1776639040905,-500.0,9.243e-05,2]
[420852891,1776639040914,-500.0,9.243e-05,2]
[420852893,1776639040924,-500.0,9.243e-05,2]
[420852895,1776639040933,-500.0,9.243e-05,2]
[420852897,1776639040943,-500.0,9.243e-05,2]
[420852899,1776639040952,-4489.1311879,0.000107,2]
[420852902,1776639040964,-759.20755296,0.000107,2]
[420852906,1776639040993,-1276.5676881,0.000107,2]
[420853066,1776639042721,-787.21249759,9.244e-05,2]
[420853078,1776639042829,-1622.4465798,9.244e-05,2]
[420853088,1776639042914,-202.99016,9.244e-05,2]
[420853090,1776639042926,-993.80145634,9.244e-05,2]
[420853093,1776639042941,-1208.66974213,9.244e-05,2]
[420853442,1776639046250,-843.199996,9.244e-05,2]
[420853444,1776639046262,-4941.89118068,9.244e-05,2]
[420853555,1776639142898,839.39,0.000165,30]
[420853556,1776639147532,-257.0,8.22e-05,2]
[420853557,1776639152840,839.39,0.000165,60]
[420853558,1776639162695,-250.0,8.307e-05,2]
[420853559,1776639178274,-150.0,8.499e-05,2]
[420853560,1776639178303,-260.0,8.499e-05,2]
[420853561,1776639198114,1906.0,8.307e-05,3]
[420853562,1776639203807,156.0,8.307e-05,3]
[420853563,1776639253580,156.0,8.307e-05,3]
[420853564,1776639310819,174.0,8.307e-05,3]
[420853565,1776639313222,1811.0,8.307e-05,3]
[420853566,1776639320007,156.0,8.307e-05,3]
[420853567,1776639350795,161.0,8.307e-05,3]
[420853568,1776639387117,-369.0,8.863e-05,2]
[420853569,1776639426681,1721.0,8.307e-05,3]
[420853570,1776639453299,156.0,8.307e-05,3]
[420853580,1776639491549,1635.0,8.307e-05,3]
[420853581,1776639497095,156.0,8.307e-05,3]
[420853592,1776639547667,1553.0,8.307e-05,3]
[420853593,1776639572840,169.94,7.378e-05,2]
[420853594,1776639605750,89.07,8.703e-05,2]
[420853595,1776639605775,94.08,8.703e-05,2]
[420853596,1776639606769,156.0,8.307e-05,3]
[420853597,1776639635159,394.46800235,7.888e-05,2]
[420853598,1776639652807,161.0,8.307e-05,3]
[420853599,1776639666423,1475.0,8.307e-05,3]
[420853600,1776639723322,-131.0,8.863e-05,2]
[420853601,1776639728695,156.0,8.307e-05,3]
[420853602,1776639741678,-171.92,8.954e-05,2]
[420853603,1776639748990,-286.0,8.999e-05,2]
[420853604,1776639749023,-300.0,8.999e-05,2]
[420853605,1776639749054,-3905.2562024,8.999e-05,2]
[420853606,1776639749279,-1017.4975952,8.999e-05,2]
[420853607,1776639749310,-618.71152982,9e-05,2]
[420853608,1776639749370,-2886.87843268,9e-05,2]
[420853609,1776639749673,-4226.25313464,9e-05,2]
[420853610,1776639749743,-2500.0,9.044e-05,2]
[420853611,1776639749782,-152.0,9.045e-05,7]
[420853612,1776639749814,-500.0,9.123e-05,2]
[420853613,1776639749844,-592.35783649,9.123e-05,2]
[420853614,1776639749873,-431.90323614,9.123e-05,2]
[420853615,1776639749904,-106.84990187,9.123e-05,2]
[420853616,1776639749995,-1433.788051,9.123e-05,2]
[420853617,1776639750025,-1540.63795287,9.133e-05,2]
[420853618,1776639750059,-150.0,9.142e-05,2]
[420853619,1776639750091,-500.0,9.143e-05,2]
[420853620,1776639750130,-500.0,9.143e-05,2]
[420853621,1776639750164,-391.17663502,9.143e-05,2]
[420853622,1776639750201,-342.05184143,9.143e-05,2]
[420853623,1776639750422,-500.0,9.143e-05,2]
[420853624,1776639750453,-500.0,9.143e-05,2]
[420853625,1776639750483,-434.61149644,9.143e-05,2]
[420853626,1776639750515,-437.44829461,9.143e-05,2]
[420853627,1776639750546,-500.0,9.143e-05,2]
[420853628,1776639750577,-500.0,9.143e-05,2]
[420853629,1776639750607,-500.0,9.143e-05,2]
[420853630,1776639750642,-500.0,9.143e-05,2]
[420853631,1776639750673,-165.88745658,9.143e-05,2]
[420853632,1776639750708,-500.0,9.143e-05,2]
[420853633,1776639750743,-424.11550474,9.143e-05,2]
[420853634,1776639750875,-75.88449526,9.143e-05,2]
[420853635,1776639750911,-500.0,9.143e-05,2]
[420853636,1776639750948,-500.0,9.143e-05,2]
[420853637,1776639750984,-500.0,9.143e-05,2]
[420853638,1776639751022,-500.0,9.143e-05,2]
[420853639,1776639751058,-500.0,9.143e-05,2]
[420853640,1776639751094,-500.0,9.143e-05,2]
[420853641,1776639751131,-500.0,9.143e-05,2]
[420853642,1776639751166,-500.0,9.143e-05,2]
[420853643,1776639751204,-500.0,9.143e-05,2]
[420853644,1776639751240,-348.24100948,9.143e-05,2]
[420853645,1776639751408,-151.75899052,9.143e-05,2]
[420853646,1776639751444,-500.0,9.143e-05,2]
[420853647,1776639751479,-500.0,9.143e-05,2]
[420853648,1776639751515,-500.0,9.143e-05,2]
[420853649,1776639751550,-500.0,9.143e-05,2]
[420853650,1776639751587,-500.0,9.143e-05,2]
[420853651,1776639752419,-500.0,9.143e-05,2]
[420853652,1776639752455,-500.0,9.143e-05,2]
[420853653,1776639752490,-500.0,9.143e-05,2]
[420853654,1776639752529,-500.0,9.143e-05,2]
[420853655,1776639752565,-196.49201896,9.143e-05,2]
[420853656,1776639756673,-303.50798104,9.143e-05,2]
[420853657,1776639756683,-196.49201896,9.143e-05,2]
[420853658,1776639756698,-303.50798104,9.143e-05,2]
[420853659,1776639756707,-196.49201896,9.143e-05,2]
[420853660,1776639756867,-303.50798104,9.143e-05,2]
[420853661,1776639756877,-196.49201896,9.143e-05,2]
[420853662,1776639756892,-303.50798104,9.143e-05,2]
[420853663,1776639756901,-196.49201896,9.143e-05,2]
[420853664,1776639756915,-303.50798104,9.143e-05,2]
[420853665,1776639756925,-196.49201896,9.143e-05,2]
[420853666,1776639756965,-303.50798104,9.143e-05,2]
[420853667,1776639756975,-196.49201896,9.143e-05,2]
[420853668,1776639757515,-303.50798104,9.143e-05,2]
[420853669,1776639757530,-196.49201896,9.143e-05,2]
[420853670,1776639758735,-303.50798104,9.143e-05,2]
[420853671,1776639758785,-500.0,9.143e-05,2]
[420853672,1776639758821,-500.0,9.143e-05,2]
[420853673,1776639758858,-500.0,9.143e-05,2]
[420853674,1776639758894,-500.0,9.143e-05,2]
[420853675,1776639758931,-500.0,9.143e-05,2]
[420853676,1776639758968,-500.0,9.143e-05,2]
[420853677,1776639759004,-500.0,9.143e-05,2]
[420853678,1776639759041,-832.70587733,9.143e-05,2]
[420853679,1776639759116,-832.70587733,9.143e-05,2]
[420853680,1776639759155,-832.70587733,9.143e-05,2]
[420853681,1776639759191,-832.70587733,9.143e-05,2]
[420853682,1776639759226,-832.70587733,9.143e-05,2]
[420853683,1776639759268,-832.70587733,9.143e-05,2]
[420853684,1776639759305,-832.70587733,9.143e-05,2]
[420853685,1776639759380,-832.70587733,9.143e-05,2]
[420853686,1776639759417,-832.70587733,9.143e-05,2]
[420853687,1776639759453,-832.70587733,9.143e-05,2]
[420853688,1776639759489,-832.70587733,9.143e-05,2]
[420853689,1776639759526,-832.70587733,9.143e-05,2]
[420853690,1776639759563,-832.70587733,9.143e-05,2]
[420853691,1776639759627,-832.70587733,9.143e-05,2]
[420853692,1776639759662,-832.70587733,9.143e-05,2]
[420853693,1776639759699,-832.70587733,9.143e-05,2]
[420853694,1776639759735,-832.70587733,9.143e-05,2]
[420853695,1776639759771,-832.70587733,9.143e-05,2]
[420853696,1776639759807,-832.70587733,9.143e-05,2]
[420853697,1776639759881,-832.70587733,9.143e-05,2]
[420853698,1776639759916,-832.70587733,9.143e-05,2]
[420853699,1776639759952,-832.70587733,9.143e-05,2]
[420853700,1776639759987,-832.70587733,9.143e-05,2]
[420853701,1776639760021,-832.70587733,9.143e-05,2]
[420853702,1776639760055,-832.70587733,9.143e-05,2]
[420853703,1776639760146,-832.70587733,9.143e-05,2]
[420853704,1776639760185,-832.70587733,9.143e-05,2]
[420853705,1776639760221,-832.70587733,9.143e-05,2]
[420853706,1776639760256,-832.70587733,9.143e-05,2]
[420853707,1776639760292,-832.70587733,9.143e-05,2]
[420853708,1776639760330,-832.70587733,9.143e-05,2]
[420853709,1776639762950,-757.74017142,9.143e-05,2]
[420853710,1776639762966,-7.53947204,9.143e-05,2]
[420853712,1776639784780,-300.0,9.142e-05,2]
[420853713,1776639784811,-150.0,9.142e-05,2]
[420853714,1776639785371,-67.42623387,9.143e-05,2]
[420853715,1776639785406,-832.70587733,9.143e-05,2]
[420853716,1776639785438,-832.70587733,9.143e-05,2]
[420853717,1776639785472,-832.70587733,9.143e-05,2]
[420853718,1776639785505,-832.70587733,9.143e-05,2]
[420853719,1776639785541,-832.70587733,9.143e-05,2]
[420853720,1776639785651,-832.70587733,9.143e-05,2]
[420853721,1776639785685,-874.34117119,9.143e-05,2]
[420853722,1776639785718,-874.34117119,9.143e-05,2]
[420853723,1776639785751,-874.34117119,9.143e-05,2]
[420853724,1776639785787,-874.34117119,9.143e-05,2]
[420853725,1776639785821,-465.52770463,9.143e-05,2]
[420853726,1776639786085,-214.20634819,9.143e-05,2]
[420853727,1776639786099,-194.60711837,9.143e-05,2]
[420853728,1776639786108,-679.73405282,9.143e-05,2]
[420853729,1776639786823,-194.60711837,9.143e-05,2]
[420853730,1776639786857,-874.34117119,9.143e-05,2]
[420853731,1776639786891,-874.34117119,9.143e-05,2]
[420853732,1776639786925,-874.34117119,9.143e-05,2]
[420853733,1776639786959,-874.34117119,9.143e-05,2]
[420853734,1776639786992,-874.34117119,9.143e-05,2]
[420853735,1776639787026,-325.74875751,9.143e-05,2]
[420853736,1776639787257,-215.88653634,9.143e-05,2]
[420853737,1776639787623,500.0,8.763e-05,2]
[420853738,1776639793776,-250.0,9.143e-05,2]
[420853739,1776639793807,-1540.63795287,9.143e-05,2]
[420853740,1776639793835,-1524.0,9.143e-05,3]
[420853741,1776639794734,-3370.73409426,9.144e-05,2]
[420853742,1776639794752,-10000.01,9.144e-05,2]
[420853743,1776639794766,-10000.01,9.144e-05,2]
[420853744,1776639794779,-10000.01,9.144e-05,2]
[420853745,1776639794809,-10000.01,9.144e-05,2]
[420853746,1776639794825,-10000.01,9.144e-05,2]
[420853747,1776639794838,-10000.01,9.144e-05,2]
[420853748,1776639794857,-10000.01,9.144e-05,2]
[420853751,1776639851964,150.0,8.843e-05,2]
[420853752,1776639883552,-151.0,9.141e-05,2]
[420853753,1776639901646,-300.0,9.143e-05,2]
[420853754,1776639902269,1200.0,9.143e-05,2]
[420853759,1776639910732,1632.0,9.141e-05,3]
[420853760,1776639910847,181.0,9.141e-05,3]
[420853761,1776639917121,154.0,9.141e-05,3]
[420853763,1776639930420,-273.85,9.143e-05,2]
[420853764,1776639930507,-6285.31,9.144e-05,2]
[420853765,1776639930737,-10000.01,9.144e-05,2]
[420853766,1776639931018,-10000.01,9.144e-05,2]
[420853767,1776639931246,-10000.01,9.144e-05,2]
[420853768,1776639931433,-10000.01,9.144e-05,2]
[420853769,1776639943984,-10000.01,9.144e-05,2]
[420853770,1776639944315,-10000.01,9.144e-05,2]
[420853771,1776639961978,150.0,9.143e-05,2]
[420853772,1776639968064,500.0,9.143e-05,2]
[420853773,1776639968137,500.0,9.143e-05,2]
[420853774,1776639968184,621.25411441,9.143e-05,2]
[420853775,1776639977846,1005.25106005,9.143e-05,2]
[420853776,1776639977881,1005.25106005,9.143e-05,2]
[420853777,1776639977916,1005.25106005,9.143e-05,2]
[420853778,1776639981904,1005.25106005,9.143e-05,2]
[420853779,1776639981946,440.75164539,9.143e-05,2]
[420853780,1776639981975,564.49941466,9.143e-05,2]
[420853781,1776639982012,1005.25106005,9.143e-05,2]
[420853782,1776639982066,1005.25106005,9.143e-05,2]
[420853783,1776639982109,1005.25106005,9.143e-05,2]
[420853784,1776639982147,1005.25106005,9.143e-05,2]
[420853785,1776639982190,1005.25106005,9.143e-05,2]
[420853786,1776639982314,1005.25106005,9.143e-05,2]
[420853787,1776639982352,1005.25106005,9.143e-05,2]
[420853788,1776639982394,1005.25106005,9.143e-05,2]
[420853789,1776639982431,1005.25106005,9.143e-05,2]
[420853790,1776639982467,388.25104489,9.143e-05,2]
[420853791,1776639982497,617.00001516,9.143e-05,2]
[420853792,1776639982533,1005.25106005,9.143e-05,2]
[420853793,1776639982575,1005.25106005,9.143e-05,2]
[420853794,1776639982611,1005.25106005,9.143e-05,2]
[420853795,1776639982658,1005.25106005,9.143e-05,2]
[420853796,1776639982696,1005.25106005,9.143e-05,2]
[420853797,1776639982733,1005.25106005,9.143e-05,2]
[420853798,1776639982770,1005.25106005,9.143e-05,2]
[420853799,1776639982810,1005.25106005,9.143e-05,2]
[420853800,1776639982847,1005.25106005,9.143e-05,2]
[420853801,1776639982959,335.75044439,9.143e-05,2]
[420853802,1776639982989,669.50061566,9.143e-05,2]
[420853803,1776639983031,1005.25106005,9.143e-05,2]
[420853804,1776639983067,1005.25106005,9.143e-05,2]
[420853805,1776639983129,1005.25106005,9.143e-05,2]
[420853806,1776639983164,1005.25106005,9.143e-05,2]
[420853807,1776639983214,1005.25106005,9.143e-05,2]
[420853808,1776639983256,1005.25106005,9.143e-05,2]
[420853809,1776639983290,1005.25106005,9.143e-05,2]
[420853810,1776639983325,1005.25106005,9.143e-05,2]
[420853811,1776639983376,1005.25106005,9.143e-05,2]
[420853812,1776639983416,283.24984389,9.143e-05,2]
[420853813,1776639983443,722.00121616,9.143e-05,2]
[420853814,1776639983481,1005.25106005,9.143e-05,2]
[420853815,1776639983525,1005.25106005,9.143e-05,2]
[420853816,1776639983559,1005.25106005,9.143e-05,2]
[420853817,1776639983593,1005.25106005,9.143e-05,2]
[420853818,1776639983629,1005.25106005,9.143e-05,2]
[420853819,1776639983664,1005.25106005,9.143e-05,2]
[420853820,1776639983702,1005.25106005,9.143e-05,2]
[420853821,1776639983749,1005.25106005,9.143e-05,2]
[420853822,1776639983788,1005.25106005,9.143e-05,2]
[420853823,1776639983826,230.74924339,9.143e-05,2]
[420853824,1776639983854,774.50181666,9.143e-05,2]
[420853825,1776639983899,1005.25106005,9.143e-05,2]
[420853826,1776639983948,1005.25106005,9.143e-05,2]
[420853827,1776639984051,1005.25106005,9.143e-05,2]
[420853828,1776639984085,1005.25106005,9.143e-05,2]
[420853829,1776639984125,1005.25106005,9.143e-05,2]
[420853830,1776639984176,1005.25106005,9.143e-05,2]
[420853831,1776639984218,1005.25106005,9.143e-05,2]
[420853832,1776639984340,1005.25106005,9.143e-05,2]
[420853835,1776640008327,-2057.238744,9.098e-05,2]
[420853836,1776640008361,-1005.25106005,9.143e-05,2]
[420853837,1776640008395,-1924.9488384,9.143e-05,2]
[420853838,1776640008467,-1924.9488384,9.143e-05,2]
[420853839,1776640008501,-1924.9488384,9.143e-05,2]
[420853840,1776640008535,-375.265808,9.143e-05,2]
[420853841,1776640008591,-1549.6830304,9.143e-05,2]
[420853842,1776640008625,-1924.9488384,9.143e-05,2]
[420853843,1776640008658,-1125.797424,9.143e-05,2]
[420853844,1776640008704,-799.1514144,9.143e-05,2]
[420853845,1776640008737,-1924.9488384,9.143e-05,2]
[420853846,1776640008771,-1924.9488384,9.143e-05,2]
[420853847,1776640008844,-1924.9488384,9.143e-05,2]
[420853848,1776640008878,-1924.9488384,9.143e-05,2]
[420853849,1776640008910,-375.265808,9.143e-05,2]
[420853850,1776640008967,-1549.6830304,9.143e-05,2]
[420853851,1776640009001,-1924.9488384,9.143e-05,2]
[420853852,1776640009035,-1125.797424,9.143e-05,2]
[420853853,1776640009105,-799.1514144,9.143e-05,2]
[420853854,1776640009138,-1924.9488384,9.143e-05,2]
[420853855,1776640009170,-1924.9488384,9.143e-05,2]
[420853856,1776640009229,-1924.9488384,9.143e-05,2]
[420853857,1776640009263,-1924.9488384,9.143e-05,2]
[420853858,1776640009296,-375.265808,9.143e-05,2]
[420853859,1776640026683,-1549.6830304,9.143e-05,2]
[420853860,1776640026717,-1924.9488384,9.143e-05,2]
[420853861,1776640026751,-1125.797424,9.143e-05,2]
[420853862,1776640038752,150.0,8.854e-05,2]
[420853863,1776640039516,-799.1514144,9.143e-05,2]
[420853864,1776640039547,-500.0,9.143e-05,2]
[420853865,1776640039577,-612.58508347,9.143e-05,2]
[420853866,1776640039611,-1924.9488384,9.143e-05,2]
[420853867,1776640039642,-500.0,9.143e-05,2]
[420853868,1776640039673,-500.0,9.143e-05,2]
[420853869,1776640039703,-139.9955252,9.143e-05,2]
[420853870,1776640039748,-46.64827706,9.143e-05,2]
[420853871,1776640039778,-500.0,9.143e-05,2]
[420853872,1776640039814,-500.0,9.143e-05,2]
[420853873,1776640039844,-500.0,9.143e-05,2]
[420853874,1776640039875,-500.0,9.143e-05,2]
[420853875,1776640039905,-500.0,9.143e-05,2]
[420853876,1776640039937,-562.03876939,9.143e-05,2]
[420853877,1776640039974,-500.0,9.143e-05,2]
[420853878,1776640040011,-500.0,9.143e-05,2]
[420853879,1776640040047,-500.0,9.143e-05,2]
[420853880,1776640040081,-282.6359071,9.143e-05,2]
[420853881,1776640040132,-217.3640929,9.143e-05,2]
[420853882,1776640040166,-411.79834497,9.143e-05,2]
[420853883,1776640040202,-500.0,9.143e-05,2]
[420853884,1776640040236,-500.0,9.143e-05,2]
[420853885,1776640040272,-500.0,9.143e-05,2]
[420853886,1776640040309,-500.0,9.143e-05,2]
[420853887,1776640040341,-369.38707669,9.143e-05,2]
[420853888,1776640040373,-1680.0,9.143e-05,3]
[420853889,1776640040402,-154.0,9.143e-05,3]
[420853890,1776640042837,-500.0,9.143e-05,2]
[420853891,1776640042871,-500.0,9.143e-05,2]
[420853892,1776640042904,-500.0,9.143e-05,2]
[420853893,1776640042939,-500.0,9.143e-05,2]
[420853894,1776640042972,-187.0,9.143e-05,2]
[420853895,1776640043412,-9676.25984389,9.144e-05,2]
[420853896,1776640043502,-10000.01,9.144e-05,2]
[420853897,1776640043521,-10000.01,9.144e-05,2]
[420853898,1776640043541,-10000.01,9.144e-05,2]
[420853899,1776640045338,-10000.01,9.144e-05,2]
[420853900,1776640045449,-10000.01,9.144e-05,2]
[420853901,1776640045563,-10000.01,9.144e-05,2]
[420853902,1776640052092,-151.0,9.141e-05,2]
[420853903,1776640052147,-9698.01,9.144e-05,2]
[420853904,1776640052223,-10000.01,9.144e-05,2]
[420853905,1776640052346,-10000.01,9.144e-05,2]
[420853906,1776640052578,-10000.01,9.144e-05,2]
[420853907,1776640052689,-10000.01,9.144e-05,2]
[420853908,1776640056414,-1500.0,9e-05,3]
[420853909,1776640056469,-7000.01,9.144e-05,2]
[420853910,1776640057778,-10000.01,9.144e-05,2]
[420853911,1776640057794,-10000.01,9.144e-05,2]
[420853912,1776640057814,-10000.01,9.144e-05,2]
[420853913,1776640062317,167.54,8.649e-05,2]
[420853914,1776640062388,223.38,8.874e-05,2]
[420853915,1776640062744,-10000.01,9.144e-05,2]
[420853916,1776640062763,-10000.01,9.144e-05,2]
[420853917,1776640062778,-10000.01,9.144e-05,2]
[420853918,1776640062793,-10000.01,9.144e-05,2]
[420853919,1776640062807,-10000.01,9.144e-05,2]
[420853920,1776640062821,-10000.01,9.144e-05,2]
[420853921,1776640067400,-10000.01,9.144e-05,2]
[420853922,1776640067524,-10000.01,9.144e-05,2]
[420853923,1776640068442,-10000.01,9.144e-05,2]
[420853924,1776640069137,200.0,8.14e-05,2]